fUSD/lending_fUSD_20260107
["ID","MTS","AMOUNT","RATE_DAILY","PERIOD"]
[400692631,1767779481610,-151.0,0.0003863,120]
[400692632,1767779481619,-500.0,0.0003863,14]
[400692633,1767779481629,-583.96,0.0003863,14]
[400692634,1767779481638,-500.0,0.0003863,14]
[400692635,1767779481647,-500.0,0.0003863,14]
[400692636,1767779481657,-500.0,0.0003863,14]
[400692637,1767779481666,-503.51,0.0003863,14]
[400692638,1767779481676,-500.0,0.0003863,14]
[400692639,1767779481686,-500.0,0.0003863,14]
[400692640,1767779481696,-722.69,0.0003863,14]
[400692641,1767779481706,-500.0,0.0003863,14]
[400692642,1767779481716,-500.0,0.0003863,14]
[400692643,1767779481725,-1210.54,0.0003863,14]
[400692644,1767779481735,-345.01032701,0.0003863,14]
[400692645,1767779481744,-500.0,0.0003863,14]
[400692646,1767779481753,-194.4228224,0.0003863,14]
[400692647,1767779481763,-500.0,0.0003863,14]
[400692648,1767779481774,-151.0,0.0003863,120]
[400692649,1767779481784,-573.65,0.0003863,14]
[400692650,1767779481793,-500.0,0.0003863,14]
[400692651,1767779481803,-241.360624,0.0003863,120]
[400692652,1767779481813,-500.0,0.0003863,14]
[400692653,1767779481822,-166.052229,0.0003863,120]
[400692654,1767779481832,-500.0,0.0003863,14]
[400692655,1767779481841,-934.12,0.0003863,14]
[400692656,1767779481850,-500.0,0.0003863,14]
[400692657,1767779481860,-500.0,0.0003863,14]
[400692658,1767779481869,-500.0,0.0003863,14]
[400692659,1767779481879,-500.0,0.0003863,14]
[400692660,1767779481889,-500.0,0.0003863,14]
[400692661,1767779481899,-500.0,0.0003863,14]
[400692662,1767779481909,-500.0,0.0003863,14]
[400692663,1767779481920,-500.0,0.0003863,14]
[400692664,1767779481930,-701.81,0.0003863,14]
[400692665,1767779481939,-514.65,0.0003863,14]
[400692666,1767779481949,-500.0,0.0003863,14]
[400692667,1767779481959,-500.0,0.0003863,14]
[400692668,1767779481974,-500.0,0.0003863,14]
[400692669,1767779481984,-379.1087088,0.0003863,14]
[400692670,1767779481994,-500.0,0.0003863,14]
[400692671,1767779482004,-1211.51982,0.0003863,120]
[400692672,1767779482015,-500.0,0.0003863,14]
[400692673,1767779482026,-500.0,0.0003863,14]
[400692674,1767779482035,-500.0,0.0003863,14]
[400692675,1767779482047,-500.0,0.0003863,14]
[400692676,1767779482056,-500.0,0.0003863,14]
[400692677,1767779482067,-1211.51982,0.0003863,120]
[400692678,1767779482077,-500.0,0.0003863,14]
[400692679,1767779482087,-500.0,0.0003863,14]
[400692680,1767779482096,-1211.51982,0.0003863,120]
[400692681,1767779482107,-527.04636813,0.0003863,14]
[400692682,1767779482117,-500.0,0.0003863,14]
[400692683,1767779482126,-500.0,0.0003863,14]
[400692684,1767779482135,-500.0,0.0003863,14]
[400692685,1767779482145,-500.0,0.0003863,14]
[400692686,1767779482156,-500.0,0.0003863,14]
[400692688,1767779482166,-500.0,0.0003863,14]
[400692689,1767779482176,-1211.51982,0.0003863,120]
[400692690,1767779482186,-1000.0,0.0003863,14]
[400692691,1767779482195,-500.0,0.0003863,14]
[400692692,1767779482206,-500.0,0.0003863,14]
[400692693,1767779482216,-500.0,0.0003863,14]
[400692694,1767779482226,-505.29,0.0003863,14]
[400692695,1767779482236,-500.0,0.0003863,14]
[400692696,1767779482245,-500.0,0.0003863,14]
[400692697,1767779482255,-500.0,0.0003863,14]
[400692698,1767779482264,-500.0,0.0003863,14]
[400692699,1767779482274,-465.97092386,0.0003863,14]
[400692700,1767779482283,-500.0,0.0003863,14]
[400692701,1767779482292,-844.35,0.0003863,14]
[400692702,1767779482302,-1330.76,0.0003863,14]
[400692703,1767779482312,-1372.32,0.0003863,14]
[400692704,1767779482322,-2124.24,0.0003863,14]
[400692705,1767779482332,-500.0,0.0003863,14]
[400692706,1767779482342,-500.0,0.0003863,14]
[400692707,1767779482352,-657.24,0.0003863,14]
[400692708,1767779482362,-500.0,0.0003863,14]
[400692709,1767779482372,-812.59,0.0003863,14]
[400692710,1767779482382,-500.0,0.0003863,14]
[400692711,1767779482392,-300.0,0.0003863,2]
[400692712,1767779482403,-500.0,0.0003863,14]
[400692713,1767779482413,-500.0,0.0003863,14]
[400692714,1767779482423,-500.0,0.0003863,14]
[400692715,1767779482434,-500.0,0.0003863,14]
[400692716,1767779482444,-500.0,0.0003863,14]
[400692717,1767779482454,-500.0,0.0003863,14]
[400692718,1767779482464,-500.0,0.0003863,14]
[400692719,1767779482474,-500.0,0.0003863,14]
[400692720,1767779482484,-500.0,0.0003863,14]
[400692721,1767779482495,-500.0,0.0003863,14]
[400692722,1767779482505,-2304.75,0.0003863,14]
[400692723,1767779482515,-500.0,0.0003863,14]
[400692724,1767779482525,-612.95,0.0003863,14]
[400692725,1767779482535,-500.0,0.0003863,14]
[400692726,1767779482545,-500.0,0.0003863,14]
[400692727,1767779482555,-500.0,0.0003863,14]
[400692728,1767779482564,-1669.49,0.0003863,14]
[400692729,1767779482574,-875.39,0.0003863,14]
[400692730,1767779482584,-523.02223488,0.0003863,14]
[400692731,1767779482594,-500.0,0.0003863,14]
[400692732,1767779482603,-257.224011,0.0003863,120]
[400692733,1767779482612,-500.0,0.0003863,14]
[400692735,1767779482622,-971.84,0.0003863,14]
[400692736,1767779482632,-500.0,0.0003863,14]
[400692737,1767779482642,-257.224011,0.0003863,120]
[400692738,1767779482652,-534.91,0.0003863,14]
[400692739,1767779482662,-500.0,0.0003863,14]
[400692740,1767779482672,-500.0,0.0003863,14]
[400692741,1767779482682,-500.0,0.0003863,14]
[400692742,1767779482691,-257.224011,0.0003863,120]
[400692743,1767779482701,-500.0,0.0003863,14]
[400692744,1767779482713,-500.0,0.0003863,14]
[400692745,1767779482723,-500.0,0.0003863,14]
[400692746,1767779482733,-500.0,0.0003863,14]
[400692747,1767779482743,-500.0,0.0003863,14]
[400692748,1767779482754,-257.224011,0.0003863,120]
[400692749,1767779482764,-530.74,0.0003863,14]
[400692750,1767779482775,-500.0,0.0003863,14]
[400692751,1767779482787,-1392.78,0.0003863,14]
[400692752,1767779482797,-500.0,0.0003863,14]
[400692753,1767779482807,-500.0,0.0003863,14]
[400692754,1767779482817,-856.378739,0.0003863,120]
[400692755,1767779482827,-500.0,0.0003863,14]
[400692756,1767779482837,-210.774458,0.0003863,120]
[400692757,1767779482847,-500.0,0.0003863,14]
[400692758,1767779482858,-500.0,0.0003863,14]
[400692759,1767779482868,-925.03,0.0003863,14]
[400692760,1767779482878,-500.0,0.0003863,2]
[400692761,1767779482888,-500.0,0.0003863,14]
[400692762,1767779482898,-500.0,0.0003863,14]
[400692763,1767779482909,-1223.16,0.0003863,14]
[400692764,1767779482919,-500.0,0.0003863,14]
[400692765,1767779482929,-1888.77,0.0003863,14]
[400692766,1767779482938,-856.378739,0.0003863,120]
[400692767,1767779482949,-500.0,0.0003863,14]
[400692768,1767779482959,-210.774458,0.0003863,120]
[400692769,1767779482970,-553.317148,0.0003863,15]
[400692770,1767779482984,-571.39419177,0.0003863,14]
[400692771,1767779482995,-856.378739,0.0003863,120]
[400692772,1767779483005,-210.774458,0.0003863,120]
[400692773,1767779483016,-151.0,0.0003863,120]
[400692774,1767779483026,-500.0,0.0003863,14]
[400692775,1767779483037,-553.317148,0.0003863,15]
[400692776,1767779483049,-856.378739,0.0003863,120]
[400692777,1767779483059,-500.0,0.0003863,14]
[400692779,1767779483070,-500.0,0.0003863,14]
[400692780,1767779483080,-629.11,0.0003863,14]
[400692781,1767779483090,-210.774458,0.0003863,120]
[400692782,1767779483101,-158.915099,0.0003863,120]
[400692783,1767779483111,-553.317148,0.0003863,15]
[400692784,1767779483123,-6399.15,0.0003863,14]
[400692785,1767779483133,-500.0,0.0003863,14]
[400692786,1767779483144,-553.317148,0.0003863,15]
[400692787,1767779483154,-500.0,0.0003863,14]
[400692788,1767779483165,-529.11,0.0003863,14]
[400692789,1767779483176,-500.0,0.0003863,14]
[400692790,1767779483187,-500.0,0.0003863,14]
[400692791,1767779483197,-2433.04,0.0003863,14]
[400692792,1767779483208,-505.84,0.0003863,14]
[400692793,1767779483219,-1218.41,0.0003863,14]
[400692794,1767779483229,-652.57,0.0003863,14]
[400692795,1767779483240,-500.0,0.0003863,14]
[400692796,1767779483251,-854.69,0.0003863,14]
[400692797,1767779483261,-500.0,0.0003863,14]
[400692798,1767779483272,-508.28311332,0.0003863,14]
[400692799,1767779483282,-500.0,0.0003863,14]
[400692800,1767779483292,-500.0,0.0003863,14]
[400692801,1767779483302,-626.51,0.0003863,14]
[400692802,1767779483312,-500.0,0.0003863,14]
[400692803,1767779483323,-3507.96,0.0003863,14]
[400692804,1767779483333,-500.0,0.0003863,14]
[400692805,1767779483343,-500.0,0.0003863,14]
[400692806,1767779483353,-500.0,0.0003863,14]
[400692807,1767779483363,-500.0,0.0003863,5]
[400692808,1767779483374,-545.37,0.0003863,14]
[400692809,1767779483384,-500.0,0.0003863,14]
[400692810,1767779483395,-500.0,0.0003863,14]
[400692811,1767779483406,-1353.54,0.0003863,14]
[400692812,1767779483417,-500.0,0.0003863,14]
[400692813,1767779483428,-500.0,0.0003863,14]
[400692814,1767779483439,-775.921114,0.0003863,120]
[400692815,1767779483450,-897.13,0.0003863,14]
[400692816,1767779483460,-500.0,0.0003863,14]
[400692817,1767779483471,-775.921114,0.0003863,120]
[400692818,1767779483481,-500.0,0.0003863,14]
[400692819,1767779483492,-500.0,0.0003863,14]
[400692820,1767779483502,-500.0,0.0003863,14]
[400692821,1767779483513,-500.0,0.0003863,14]
[400692823,1767779483523,-500.0,0.0003863,14]
[400692824,1767779483534,-775.921114,0.0003863,120]
[400692825,1767779483544,-869.33,0.0003863,14]
[400692826,1767779483555,-500.0,0.0003863,14]
[400692827,1767779483565,-775.921114,0.0003863,120]
[400692828,1767779483576,-500.0,0.0003863,14]
[400692829,1767779483586,-500.0,0.0003863,14]
[400692830,1767779483596,-510.70827144,0.0003863,14]
[400692831,1767779483606,-500.0,0.0003863,14]
[400692832,1767779483616,-500.0,0.0003863,14]
[400692833,1767779483627,-508.16,0.0003863,14]
[400692834,1767779483637,-1812.63,0.0003863,14]
[400692835,1767779483647,-500.0,0.0003863,14]
[400692836,1767779483657,-1265.45,0.0003863,14]
[400692837,1767779483667,-821.52,0.0003863,14]
[400692838,1767779483676,-1212.91,0.0003863,14]
[400692839,1767779483687,-500.0,0.0003863,14]
[400692840,1767779483698,-500.0,0.0003863,14]
[400692841,1767779483708,-565.3,0.0003863,14]
[400692842,1767779483718,-500.0,0.0003863,14]
[400692843,1767779483728,-534.02817731,0.0003863,14]
[400692844,1767779483739,-500.0,0.0003863,14]
[400692845,1767779483750,-1333.98,0.0003863,14]
[400692846,1767779483761,-821.41,0.0003863,14]
[400692847,1767779483771,-500.0,0.0003863,14]
[400692848,1767779483781,-1575.18,0.0003863,14]
[400692849,1767779483791,-500.0,0.0003863,14]
[400692850,1767779483802,-752.91,0.0003863,14]
[400692851,1767779483812,-500.0,0.0003863,14]
[400692852,1767779483822,-1186.87,0.0003863,14]
[400692853,1767779483833,-500.0,0.0003863,14]
[400692854,1767779483843,-500.0,0.0003863,14]
[400692855,1767779483855,-500.0,0.0003863,14]
[400692856,1767779483866,-555.08376451,0.0003863,14]
[400692857,1767779483877,-2645.68,0.0003863,14]
[400692858,1767779483887,-500.0,0.0003863,14]
[400692859,1767779483898,-500.0,0.0003863,14]
[400692860,1767779483907,-558.44,0.0003863,14]
[400692861,1767779483917,-151.0,0.0003863,120]
[400692863,1767779483928,-739.4,0.0003863,14]
[400692864,1767779483938,-909.24,0.0003863,14]
[400692865,1767779483948,-940.72,0.0003863,14]
[400692866,1767779483958,-151.0,0.0003863,120]
[400692867,1767779483971,-500.0,0.0003863,14]
[400692868,1767779483982,-500.0,0.0003863,14]
[400692869,1767779483993,-500.0,0.0003863,14]
[400692870,1767779484004,-500.0,0.0003863,14]
[400692871,1767779484015,-500.0,0.0003863,14]
[400692872,1767779484027,-151.0,0.0003863,120]
[400692873,1767779484038,-500.0,0.0003863,14]
[400692874,1767779484060,-989.35,0.0003863,14]
[400692875,1767779484072,-151.0,0.0003863,90]
[400692876,1767779484083,-213.89793,0.0003863,120]
[400692877,1767779484095,-532.60347578,0.0003863,14]
[400692878,1767779484106,-673.94,0.0003863,14]
[400692879,1767779484119,-959.81,0.0003863,14]
[400692880,1767779484131,-500.0,0.0003863,14]
[400692881,1767779484144,-1146.48,0.0003863,14]
[400692882,1767779484156,-638.02,0.0003863,14]
[400692883,1767779484170,-500.0,0.0003863,14]
[400692885,1767779484450,-900.39,0.0003863,14]
[400692886,1767779484461,-500.0,0.0003863,14]
[400692887,1767779484472,-1318.41,0.0003863,14]
[400692888,1767779484482,-590.92104178,0.0003863,14]
[400692889,1767779484491,-500.0,0.0003863,14]
[400692890,1767779484501,-211.1443902,0.0003863,14]
[400692891,1767779484510,-500.0,0.0003863,14]
[400692892,1767779484519,-500.0,0.0003863,14]
[400692893,1767779484529,-500.0,0.0003863,14]
[400692894,1767779484538,-500.0,0.0003863,14]
[400692895,1767779484548,-500.0,0.0003863,14]
[400692896,1767779484558,-500.0,0.0003863,14]
[400692897,1767779484568,-500.0,0.0003863,14]
[400692898,1767779484578,-500.0,0.0003863,14]
[400692899,1767779484588,-500.0,0.0003863,14]
[400692900,1767779484598,-500.0,0.0003863,14]
[400692901,1767779484608,-2882.32,0.0003863,14]
[400692902,1767779484617,-689.57,0.0003863,14]
[400692903,1767779484627,-500.0,0.0003863,14]
[400692904,1767779484637,-500.0,0.0003863,14]
[400692905,1767779484647,-500.0,0.0003863,14]
[400692906,1767779484658,-3530.36,0.0003863,14]
[400692907,1767779484677,-634.52,0.0003863,14]
[400692908,1767779484687,-421.07179289,0.0003863,14]
[400692909,1767779484697,-500.0,0.0003863,14]
[400692910,1767779484706,-500.0,0.0003863,14]
[400692911,1767779484716,-1458.71,0.0003863,14]
[400692912,1767779484726,-743.41,0.0003863,14]
[400692913,1767779484736,-763.21,0.0003863,14]
[400692914,1767779484746,-888.35,0.0003863,14]
[400692915,1767779484755,-500.0,0.0003863,14]
[400692917,1767779484764,-2783.58,0.0003863,14]
[400692918,1767779484774,-910.56,0.0003863,14]
[400692919,1767779484783,-151.0,0.0003863,120]
[400692920,1767779484792,-500.0,0.0003863,14]
[400692921,1767779484801,-500.0,0.0003863,14]
[400692922,1767779484811,-500.0,0.0003863,14]
[400692923,1767779484820,-573.97179527,0.0003863,14]
[400692924,1767779484830,-500.0,0.0003863,14]
[400692925,1767779484839,-500.0,0.0003863,14]
[400692926,1767779484849,-581.80346962,0.0003863,14]
[400692927,1767779484859,-317.509641,0.0003863,120]
[400692928,1767779484869,-500.0,0.0003863,14]
[400692929,1767779484879,-500.0,0.0003863,14]
[400692930,1767779484888,-513.94403674,0.0003863,14]
[400692931,1767779484898,-551.72245986,0.0003863,14]
[400692932,1767779484909,-500.0,0.0003863,14]
[400692933,1767779484919,-3198.64,0.0003863,14]
[400692934,1767779484929,-500.0,0.0003863,14]
[400692935,1767779484939,-317.509641,0.0003863,120]
[400692936,1767779484948,-1797.91,0.0003863,14]
[400692937,1767779484957,-1704.38,0.0003863,14]
[400692938,1767779484972,-500.0,0.0003863,14]
[400692939,1767779484981,-1285.83,0.0003863,14]
[400692940,1767779484991,-500.0,0.0003863,14]
[400692941,1767779485001,-317.509641,0.0003863,120]
[400692942,1767779485011,-500.0,0.0003863,14]
[400692943,1767779485021,-587.18,0.0003863,14]
[400692944,1767779485030,-836.52,0.0003863,14]
[400692945,1767779485041,-181.767083,0.0003863,120]
[400692946,1767779485051,-349.96427628,0.0003863,14]
[400692947,1767779485061,-317.509641,0.0003863,120]
[400692948,1767779485071,-847.9,0.0003863,14]
[400692949,1767779485080,-500.0,0.0003863,14]
[400692950,1767779485090,-500.0,0.0003863,14]
[400692951,1767779485099,-500.0,0.0003863,14]
[400692952,1767779485109,-500.0,0.0003863,14]
[400692953,1767779485119,-500.0,0.0003863,14]
[400692954,1767779485128,-500.0,0.0003863,14]
[400692955,1767779485137,-769.19,0.0003863,14]
[400692956,1767779485147,-500.0,0.0003863,14]
[400692957,1767779485156,-500.0,0.0003863,14]
[400692958,1767779485167,-230.085058,0.0003863,120]
[400692959,1767779485177,-588.93,0.0003863,14]
[400692960,1767779485187,-500.0,0.0003863,14]
[400692961,1767779485197,-500.0,0.0003863,14]
[400692962,1767779485207,-500.0,0.0003863,14]
[400692963,1767779485217,-222.615984,0.0003863,120]
[400692964,1767779485227,-467.653299,0.0003863,120]
[400692965,1767779485237,-528.6441692,0.0003863,14]
[400692966,1767779485247,-500.0,0.0003863,14]
[400692967,1767779485257,-300.0,0.0003863,2]
[400692968,1767779485266,-200.96091747,0.0003863,14]
[400692969,1767779485276,-222.615984,0.0003863,120]
[400692970,1767779485288,-467.653299,0.0003863,120]
[400692971,1767779485298,-625.28,0.0003863,14]
[400692972,1767779485308,-500.0,0.0003863,14]
[400692973,1767779485318,-1281.43,0.0003863,14]
[400692974,1767779485327,-754.88,0.0003863,14]
[400692975,1767779485337,-768.99,0.0003863,14]
[400692976,1767779485347,-500.0,0.0003863,14]
[400692977,1767779485356,-467.653299,0.0003863,120]
[400692978,1767779485366,-222.615984,0.0003863,120]
[400692979,1767779485376,-1134.1,0.0003863,14]
[400692980,1767779485385,-701.91,0.0003863,14]
[400692981,1767779485394,-500.0,0.0003863,14]
[400692982,1767779485404,-467.653299,0.0003863,120]
[400692983,1767779485413,-517.38538678,0.0003863,14]
[400692984,1767779485423,-222.615984,0.0003863,120]
[400692985,1767779485432,-500.0,0.0003863,14]
[400692986,1767779485443,-522.6,0.0003863,14]
[400692987,1767779485452,-500.0,0.0003863,14]
[400692988,1767779485462,-500.0,0.0003863,14]
[400692989,1767779485471,-500.0,0.0003863,14]
[400692990,1767779485481,-800.11,0.0003863,14]
[400692991,1767779485491,-500.0,0.0003863,14]
[400692992,1767779485500,-500.0,0.0003863,14]
[400692993,1767779485509,-1883.86,0.0003863,14]
[400692994,1767779485520,-500.0,0.0003863,14]
[400692995,1767779485529,-500.0,0.0003863,14]
[400692996,1767779485539,-508.25,0.0003863,14]
[400692997,1767779485548,-1372.02,0.0003863,14]
[400692998,1767779485558,-500.0,0.0003863,14]
[400692999,1767779485568,-532.93968922,0.0003863,14]
[400693000,1767779485578,-500.0,0.0003863,14]
[400693001,1767779485587,-500.0,0.0003863,14]
[400693002,1767779485597,-500.0,0.0003863,14]
[400693003,1767779485607,-912.56,0.0003863,14]
[400693004,1767779485616,-500.0,0.0003863,14]
[400693005,1767779485626,-1663.73,0.0003863,14]
[400693006,1767779485636,-1587.88,0.0003863,14]
[400693007,1767779485646,-500.0,0.0003863,14]
[400693008,1767779485656,-541.12,0.0003863,14]
[400693009,1767779485665,-500.0,0.0003863,14]
[400693010,1767779485679,-500.0,0.0003863,14]
[400693011,1767779485689,-500.0,0.0003863,14]
[400693012,1767779485698,-569.23,0.0003863,14]
[400693013,1767779485708,-542.22802105,0.0003863,14]
[400693014,1767779485718,-500.0,0.0003863,14]
[400693015,1767779485727,-500.0,0.0003863,14]
[400693016,1767779485737,-500.0,0.0003863,14]
[400693017,1767779485748,-500.0,0.0003863,14]
[400693018,1767779485758,-2334.57,0.0003863,14]
[400693019,1767779485768,-500.0,0.0003863,14]
[400693020,1767779485777,-500.0,0.0003863,14]
[400693021,1767779485787,-500.0,0.0003863,14]
[400693022,1767779485796,-500.0,0.0003863,14]
[400693023,1767779485805,-768.9,0.0003863,14]
[400693024,1767779485815,-507.82187538,0.0003863,14]
[400693025,1767779485825,-500.0,0.0003863,14]
[400693026,1767779485835,-500.0,0.0003863,14]
[400693027,1767779485846,-500.0,0.0003863,14]
[400693028,1767779485855,-500.0,0.0003863,14]
[400693029,1767779485865,-500.0,0.0003863,14]
[400693030,1767779485874,-844.15,0.0003863,14]
[400693031,1767779485884,-310.44728916,0.0003863,14]
[400693032,1767779485893,-500.0,0.0003863,14]
[400693033,1767779485903,-500.0,0.0003863,14]
[400693034,1767779485912,-151.0,0.0003863,120]
[400693035,1767779485923,-500.0,0.0003863,14]
[400693036,1767779485933,-565.66199934,0.0003863,14]
[400693037,1767779485943,-775.76,0.0003863,14]
[400693038,1767779485952,-151.0,0.0003863,120]
[400693039,1767779485962,-500.0,0.0003863,14]
[400693040,1767779485976,-500.0,0.0003863,14]
[400693041,1767779485986,-151.0,0.0003863,120]
[400693042,1767779485996,-1172.73,0.0003863,14]
[400693043,1767779486014,-389.713068,0.0003863,28]
[400693044,1767779486025,-500.0,0.0003863,14]
[400693045,1767779486035,-151.0,0.0003863,120]
[400693046,1767779486048,-500.0,0.0003863,14]
[400693047,1767779486057,-151.0,0.0003863,120]
[400693048,1767779486066,-1102.29,0.0003863,14]
[400693049,1767779486076,-389.713068,0.0003863,28]
[400693050,1767779486085,-500.0,0.0003863,14]
[400693051,1767779486095,-500.0,0.0003863,14]
[400693052,1767779486105,-151.0,0.0003863,120]
[400693053,1767779486114,-500.0,0.0003863,14]
[400693054,1767779486124,-500.0,0.0003863,14]
[400693055,1767779486134,-389.713068,0.0003863,28]
[400693056,1767779486143,-3542.99,0.0003863,14]
[400693057,1767779486154,-500.0,0.0003863,14]
[400693058,1767779486164,-500.0,0.0003863,14]
[400693059,1767779486175,-389.713068,0.0003863,28]
[400693060,1767779486185,-660.67,0.0003863,14]
[400693061,1767779486195,-1733.11,0.0003863,14]
[400693062,1767779486205,-500.0,0.0003863,2]
[400693063,1767779486215,-151.0,0.0003863,120]
[400693064,1767779486225,-500.0,0.0003863,14]
[400693065,1767779486235,-500.0,0.0003863,14]
[400693066,1767779486246,-503.36,0.0003863,14]
[400693067,1767779486255,-603.22071904,0.0003863,14]
[400693068,1767779486266,-151.0,0.0003863,120]
[400693069,1767779486276,-500.0,0.0003863,14]
[400693070,1767779486286,-500.0,0.0003863,14]
[400693071,1767779486296,-1189.49,0.0003863,14]
[400693072,1767779486306,-500.0,0.0003863,14]
[400693073,1767779486315,-500.0,0.0003863,14]
[400693074,1767779486326,-1874.58,0.0003863,14]
[400693075,1767779486336,-500.0,0.0003863,14]
[400693076,1767779486347,-500.0,0.0003863,14]
[400693077,1767779486357,-500.0,0.0003863,14]
[400693078,1767779486367,-500.0,0.0003863,14]
[400693079,1767779486377,-500.0,0.0003863,14]
[400693080,1767779486386,-1766.52,0.0003863,14]
[400693081,1767779486396,-1014.97,0.0003863,14]
[400693082,1767779486406,-500.0,0.0003863,14]
[400693083,1767779486416,-500.0,0.0003863,14]
[400693084,1767779486426,-976.72,0.0003863,14]
[400693085,1767779486436,-500.0,0.0003863,14]
[400693086,1767779486447,-500.0,0.0003863,14]
[400693087,1767779486464,-500.0,0.0003863,14]
[400693088,1767779486481,-500.0,0.0003863,14]
[400693089,1767779486491,-500.0,0.0003863,14]
[400693090,1767779486501,-500.0,0.0003863,14]
[400693091,1767779486511,-500.0,0.0003863,14]
[400693092,1767779486522,-543.48,0.0003863,14]
[400693093,1767779486532,-500.0,0.0003863,2]
[400693094,1767779486541,-1171.53,0.0003863,14]
[400693095,1767779486551,-500.0,0.0003863,14]
[400693096,1767779486561,-500.0,0.0003863,14]
[400693097,1767779486572,-500.0,0.0003863,14]
[400693098,1767779486582,-1515.73,0.0003863,14]
[400693099,1767779486591,-500.0,0.0003863,14]
[400693100,1767779486601,-151.0,0.0003863,2]
[400693101,1767779486611,-151.0,0.0003863,2]
[400693102,1767779486620,-151.0,0.0003863,2]
[400693103,1767779486630,-1348.46498127,0.00038658,30]
[400693104,1767779486640,-630.07344,0.00038688,30]
[400693105,1767779486650,-785.08,0.000387,30]
[400693106,1767779486659,-13484.94,0.000387,2]
[400693107,1767779486670,-175.0,0.00038723,120]
[400693108,1767779486681,-1348.46498127,0.00038822,30]
[400693109,1767779486691,-168.0,0.0003887,2]
[400693110,1767779486700,-15079.98016307,0.00038874,2]
[400693111,1767779486710,-630.09320404,0.00038894,31]
[400693112,1767779486720,-800.0,0.00038894,13]
[400693113,1767779486730,-800.0,0.00038894,13]
[400693114,1767779486739,-800.0,0.00038894,13]
[400693115,1767779486749,-800.0,0.00038894,13]
[400693116,1767779486760,-800.0,0.00038894,13]
[400693117,1767779486769,-800.0,0.00038894,13]
[400693118,1767779486779,-800.0,0.00038894,13]
[400693119,1767779486788,-800.0,0.00038894,13]
[400693120,1767779486799,-800.0,0.00038894,13]
[400693121,1767779486809,-800.0,0.00038894,13]
[400693122,1767779486819,-800.0,0.00038894,13]
[400693123,1767779486829,-800.0,0.00038894,13]
[400693124,1767779486840,-800.0,0.00038894,13]
[400693125,1767779486849,-800.0,0.00038894,13]
[400693126,1767779486859,-800.0,0.00038894,13]
[400693127,1767779486869,-800.0,0.00038894,13]
[400693128,1767779486879,-800.0,0.00038894,13]
[400693129,1767779486889,-800.0,0.00038894,13]
[400693130,1767779486900,-800.0,0.00038894,13]
[400693131,1767779486909,-800.0,0.00038894,13]
[400693132,1767779486919,-800.0,0.00038894,13]
[400693133,1767779486928,-800.0,0.00038894,13]
[400693134,1767779486937,-800.0,0.00038894,13]
[400693135,1767779486946,-800.0,0.00038894,13]
[400693136,1767779486956,-800.0,0.00038894,13]
[400693137,1767779486966,-743.0,0.00038894,13]